bitfinex/quotes_ETHUSD_20260308
["timestamp","ask_amount","ask_price","bid_price","bid_amount"]
[1773003064837,0.48478862,1964.5,1963.9,0.46389888]
[1773003065620,1.73162169,1964.4,1963.9,1.73685871]
[1773003066011,0.45896847,1964.0,1963.6,0.001]
[1773003067507,0.45896847,1963.8,1963.6,0.001]
[1773003067915,0.45896847,1963.8,1963.0,0.00153886]
[1773003067916,0.45896847,1963.7,1963.0,0.00153886]
[1773003068121,0.45896847,1963.6,1963.0,0.00153886]
[1773003068415,0.45896847,1963.6,1963.5,0.001]
[1773003068615,0.45896847,1963.6,1962.6,1.27381757]
[1773003069213,0.45896847,1963.6,1962.6,1.73976305]
[1773003069420,0.45896847,1963.6,1963.4,0.001]
[1773003069621,0.45896847,1963.6,1962.2,5.09582177]
[1773003069622,0.45896847,1963.4,1962.1,0.46594548]
[1773003069823,0.45896847,1963.1,1962.1,0.46594548]
[1773003071452,0.45896847,1962.5,1961.3,0.46594548]
[1773003071741,0.45896847,1962.5,1961.5,0.46594548]
[1773003071742,1.27395026,1962.4,1961.5,0.46594548]
[1773003072742,0.45896847,1962.3,1961.5,0.46594548]
[1773003073113,0.45896847,1962.3,1961.4,1.27459977]
[1773003073745,1.27405899,1962.3,1961.4,0.34225412]
[1773003074109,1.73302746,1962.3,1961.4,0.34225412]
[1773003074926,5.09591155,1963.0,1961.3,5.0983991]
[1773003074927,1.7326307,1962.9,1961.6,0.34225412]
[1773003075124,1.73259884,1962.9,1961.6,0.34225412]
[1773003075811,1.73259884,1962.9,1961.9,0.065536]
[1773003075812,0.45896847,1962.9,1961.9,0.065536]
[1773003076148,0.45896847,1962.9,1962.0,0.34225412]
[1773003076515,0.00153886,1963.0,1962.2,0.34225412]
[1773003076943,0.45896847,1962.9,1961.7,1.27440485]
[1773003077250,0.45896847,1962.9,1961.8,0.34225412]
[1773003078155,0.45896847,1962.7,1961.9,1.27427493]
[1773003079056,0.45896847,1962.7,1961.7,1.27436328]
[1773003079233,0.45896847,1962.6,1961.7,1.27436328]
[1773003080360,1.73285382,1962.5,1961.6,5.43987353]
[1773003081330,1.73285382,1962.5,1962.0,0.001]
[1773003082638,0.45896847,1962.4,1962.0,0.001]
[1773003084430,1.27401518,1962.3,1962.0,0.001]
[1773003084631,0.45896847,1962.2,1962.0,0.001]
[1773003085358,0.45896847,1962.2,1961.3,15.21813917]
[1773003085359,0.45896847,1961.8,1960.1,6.40677285]
[1773003085678,0.45896847,1961.4,1960.5,0.34225412]
[1773003085876,0.45896847,1961.4,1960.5,0.34479298]
[1773003086237,0.45896847,1961.4,1960.5,0.00253886]
[1773003086639,0.45896847,1961.2,1960.5,0.00253886]
[1773003087777,10.28075596,1962.1,1960.6,0.34225412]
[1773003087778,0.45896847,1961.6,1960.6,0.34225412]
[1773003087985,0.45896847,1961.6,1960.6,0.34479298]
[1773003088341,2.63440772,1961.9,1960.6,0.00253886]
[1773003088342,0.45896847,1961.0,1960.6,0.00253886]
[1773003088788,1.73364821,1961.3,1960.6,0.00253886]
[1773003089145,0.45896847,1961.3,1960.6,0.00253886]
[1773003089346,0.45896847,1961.2,1960.6,0.00253886]
[1773003090586,0.45896847,1960.7,1960.4,0.7902761]
[1773003090885,0.45896847,1960.7,1960.4,0.55736764]
[1773003091081,0.45896847,1960.7,1960.0,0.00153886]
[1773003091241,0.45896847,1960.7,1960.1,0.00253886]
[1773003092862,0.49595809,1960.9,1960.1,0.00253886]
[1773003093204,0.49595809,1960.9,1960.1,0.46637427]
[1773003093412,0.49595809,1960.9,1960.1,0.00253886]
[1773003094068,0.49595809,1960.9,1960.7,0.001]
[1773003094761,0.49595809,1961.2,1960.7,0.00353886]
[1773003094994,0.49595809,1961.5,1960.7,0.00353886]
[1773003095183,0.49595809,1961.5,1960.7,0.46737427]
[1773003096362,1.27433989,1961.8,1960.7,0.46737427]
[1773003096559,0.49595809,1961.7,1960.7,0.46737427]
[1773003097199,0.49595809,1961.6,1960.8,1.2749898]
[1773003098795,1.77023302,1961.9,1960.9,0.46637427]
[1773003099100,1.77023302,1961.9,1961.0,1.27485976]
[1773003099426,0.49595809,1961.8,1961.0,1.27485976]
[1773003099994,0.49595809,1961.8,1961.1,0.00253886]
[1773003100497,1.27580034,1962.0,1961.1,0.46637427]
[1773003100714,0.00153886,1962.0,1961.1,0.46637427]
[1773003100999,1.7717085,1962.0,1961.1,0.46637427]
[1773003101193,0.49595809,1961.9,1961.2,1.27472975]
[1773003102203,0.49595809,1961.9,1961.3,0.00253886]
[1773003103399,1.77026976,1961.9,1961.3,0.00253886]
[1773003104196,0.49595809,1961.8,1961.3,0.00253886]
[1773003105532,0.49595809,1961.6,1961.3,0.00253886]
[1773003107697,1.27453479,1961.5,1961.3,0.00253886]
[1773003109624,1.27453479,1961.5,1960.9,1.27492477]
[1773003109811,1.27453479,1961.5,1961.0,0.00253886]
[1773003110008,0.49595809,1961.6,1961.0,0.46637427]
[1773003110226,0.002,1961.7,1961.0,0.46637427]
[1773003110413,1.27641043,1961.7,1961.0,0.46637427]
[1773003110615,0.002,1961.7,1961.0,0.46637427]
[1773003110919,1.27642571,1961.7,1961.0,0.46637427]
[1773003111119,0.49595809,1961.6,1961.0,0.46637427]
[1773003111521,0.49595809,1961.6,1961.0,0.00253886]
[1773003111722,0.49595809,1961.0,1960.7,0.001]
[1773003112025,0.49595809,1961.0,1960.4,0.001]
[1773003112026,0.49595809,1960.7,1960.4,0.001]
[1773003112723,5.2000451,1961.4,1960.4,0.00353886]
[1773003112724,0.49595809,1961.0,1960.4,0.00353886]
[1773003113097,0.49595809,1961.3,1960.4,0.00353886]
[1773003113590,1.27492477,1960.9,1960.4,0.00353886]
[1773003113811,7.69936871,1961.1,1960.4,0.00353886]
[1773003113812,0.49595809,1961.1,1960.4,0.00353886]
[1773003114928,1.77051336,1961.5,1960.3,0.46383541]
[1773003115104,0.49595809,1961.4,1960.3,0.46383541]
[1773003116723,1.27466476,1961.3,1960.4,1.27524994]
[1773003116906,1.27466476,1961.3,1960.4,1.73908535]
[1773003117404,0.49595809,1961.2,1960.4,1.73908535]
[1773003117802,0.49595809,1961.2,1960.4,1.27524994]
[1773003118698,1.27479475,1961.1,1960.4,1.27524994]
[1773003119010,5.59495374,1961.2,1960.4,1.27524994]
[1773003119011,1.77070293,1961.2,1960.4,1.73908535]
[1773003119210,1.27474484,1961.2,1960.5,0.46383541]
[1773003119425,0.49595809,1961.1,1960.4,1.27524994]
[1773003119628,0.49595809,1961.1,1960.4,1.27624994]
[1773003120604,0.49595809,1961.1,1960.4,0.001]
[1773003120799,0.49595809,1960.9,1960.4,0.001]
[1773003121000,0.49595809,1960.5,1959.9,0.001]
[1773003121229,0.49595809,1960.5,1959.5,5.56704794]
[1773003121431,0.49595809,1960.5,1959.6,1.27577056]
[1773003121934,1.27639862,1961.0,1959.7,0.46383541]
[1773003121935,0.49595809,1960.8,1959.7,0.46383541]
[1773003122146,0.49595809,1960.8,1959.9,0.46383541]
[1773003122441,1.27639862,1961.0,1959.9,0.46383541]
[1773003122741,1.77235671,1961.0,1959.9,0.46383541]
[1773003122906,1.77235671,1961.0,1960.1,0.49410224]
[1773003124326,1.77235671,1961.0,1960.0,1.2755102]
[1773003124327,0.46107796,1960.1,1959.0,1.27768942]
[1773003124824,1.73658816,1960.0,1959.0,1.27768942]
[1773003125510,1.73658816,1960.0,1959.0,2.57968942]
[1773003126937,0.47081676,1959.9,1957.5,0.4639116]
[1773003127166,0.47081676,1959.9,1957.0,0.00153886]
[1773003127167,0.47081676,1959.0,1958.0,1.27831323]
[1773003128160,0.47081676,1959.0,1958.0,2.58231323]
[1773003128663,0.47081676,1959.0,1958.0,3.04622483]
[1773003128863,0.47081676,1959.5,1958.1,0.4639116]
[1773003129459,0.47081676,1959.3,1958.3,0.4639116]
[1773003130439,5.10360314,1959.5,1958.3,0.4639116]
[1773003130440,1.2758856,1959.5,1958.3,0.4639116]
[1773003130651,1.74670236,1959.5,1958.3,0.4639116]
[1773003131533,0.47081676,1959.5,1958.4,1.74046388]
[1773003131729,0.47081676,1959.5,1958.5,0.4639116]
[1773003131948,1.74671424,1959.5,1958.6,1.309]
[1773003132167,0.47081676,1959.5,1958.6,1.309]
[1773003132364,1.74666469,1959.5,1958.6,1.7729116]
[1773003132978,1.74665266,1959.5,1958.6,1.7729116]
[1773003133165,0.47081676,1959.5,1958.6,1.7729116]
[1773003133362,1.74665264,1959.5,1958.6,1.7729116]
[1773003133536,1.74665264,1959.5,1958.7,1.27635676]
[1773003133736,0.47081676,1959.5,1958.7,1.27635676]
[1773003134165,1.27574909,1959.7,1958.7,1.74026836]
[1773003135187,0.47235562,1960.0,1958.8,0.4639116]
[1773003135491,1.74787117,1960.0,1959.0,0.4639116]
[1773003136049,1.27705441,1960.0,1959.0,0.4639116]
[1773003136406,1.27705441,1960.0,1958.2,5.57051169]
[1773003136407,0.47081676,1959.1,1958.2,5.57051169]
[1773003136548,0.47081676,1959.1,1958.2,1.27661942]
[1773003136754,0.47081676,1959.1,1958.4,1.2775486]
[1773003137893,1.74697806,1959.0,1958.4,0.001]
[1773003139521,5.10412517,1959.2,1958.4,0.001]
[1773003139522,0.47081676,1959.3,1958.4,0.001]
[1773003139803,1.74683422,1959.3,1958.5,1.2764871]
[1773003139969,1.74683422,1959.3,1958.5,1.7403987]
[1773003140176,1.74680017,1959.3,1958.5,1.7403987]
[1773003141311,0.47081676,1959.3,1958.5,1.7403987]
[1773003141605,2.60002255,1959.6,1958.6,0.4639116]
[1773003141606,1.27585542,1959.5,1958.6,0.4639116]
[1773003141809,1.27585542,1959.5,1958.7,1.27635676]
[1773003141980,0.47081676,1959.4,1958.7,1.27635676]
[1773003142178,0.47081676,1959.4,1958.6,1.337]
[1773003143811,1.2759659,1959.3,1958.7,1.27635676]
[1773003145604,5.57468038,1959.4,1958.7,1.74026836]
[1773003145605,1.74673346,1959.4,1958.7,1.74026836]
[1773003145980,1.27581066,1959.6,1958.7,1.74026836]
[1773003146308,1.27581066,1959.6,1958.8,0.4639116]
[1773003146906,1.746567,1959.7,1958.8,0.4639116]
[1773003147411,0.002,1959.4,1958.8,0.4639116]
[1773003148112,0.002,1959.4,1959.0,0.4639116]
[1773003151016,0.002,1959.4,1959.1,1.74000776]
[1773003151317,0.002,1959.4,1959.2,1.345]
[1773003151721,0.002,1959.6,1959.2,1.345]
[1773003151922,1.74787144,1960.0,1959.1,1.27609616]
[1773003152087,0.47081676,1959.9,1959.2,1.346]
[1773003154210,1.74641779,1959.9,1959.3,1.2759659]
[1773003155717,1.74641779,1959.9,1959.1,5.10431408]
[1773003155718,0.49600894,1959.8,1959.1,5.10431408]
[1773003156024,0.49600894,1959.8,1959.1,1.347]
[1773003156999,0.49600894,1959.6,1959.1,1.347]
[1773003157321,0.49600894,1959.5,1958.5,2.6254834]
[1773003158921,0.49600894,1958.9,1958.4,0.001]
[1773003159129,0.49600894,1958.7,1958.4,0.001]
[1773003159503,0.49600894,1958.6,1958.0,0.00153886]
[1773003159715,0.49600894,1958.6,1958.0,1.27835119]
[1773003161528,1.77249297,1958.6,1958.0,0.00153886]
[1773003162527,1.77249297,1958.6,1957.4,6.45330461]
[1773003162528,2.65697807,1957.9,1957.0,1.27900372]
[1773003162729,0.49600894,1957.6,1957.0,1.27900372]
[1773003162907,0.49600894,1957.6,1956.6,1.27766136]
[1773003163309,2.60002255,1957.4,1956.6,2.61466136]
[1773003163527,1.27733496,1957.2,1956.6,2.61466136]
[1773003163740,1.7733439,1957.2,1956.6,1.27766136]
[1773003164306,0.49600894,1957.1,1956.5,2.61475353]
[1773003164601,0.49600894,1957.1,1956.5,1.27775353]
[1773003164807,1.77315295,1957.5,1956.5,1.75145419]
[1773003165425,0.49600894,1957.4,1956.5,1.75145419]
[1773003166037,1.77301767,1957.7,1956.6,0.47370066]
[1773003166231,0.49600894,1957.7,1956.6,0.47370066]
[1773003167431,1.77436644,1958.0,1956.6,0.47370066]
[1773003168027,0.4975478,1958.0,1956.8,0.47370066]
[1773003168229,1.77436744,1958.0,1956.8,0.47370066]
[1773003168435,0.4975478,1958.0,1956.8,0.47370066]
[1773003168803,0.00153886,1958.0,1956.8,0.47370066]
[1773003169237,0.49600894,1958.6,1957.0,0.47370066]
[1773003169455,0.49600894,1958.6,1956.9,0.065536]
[1773003169456,0.49600894,1958.6,1957.2,0.47370066]
[1773003170010,0.49600894,1958.6,1957.4,0.47370066]
[1773003170321,0.49600894,1958.5,1957.4,0.47370066]
[1773003172243,0.49600894,1958.5,1957.6,0.47370066]
[1773003173426,1.77250532,1958.5,1957.6,0.47370066]
[1773003173631,1.77234436,1958.8,1957.7,1.78970066]
[1773003174137,0.49600894,1958.6,1957.8,1.2769435]
[1773003174938,0.002,1958.4,1957.8,1.2769435]
[1773003176246,0.002,1958.4,1957.9,0.47370066]
[1773003178758,0.002,1958.4,1958.0,1.27681307]
[1773003179053,0.002,1958.7,1958.1,0.47370066]
[1773003183246,0.002,1958.7,1958.2,1.27668266]
[1773003183459,0.002,1958.7,1958.3,1.338]
[1773003187760,0.002,1958.7,1958.4,1.27655228]
[1773003188355,0.00153886,1959.0,1958.5,0.49824572]
[1773003188664,0.49896906,1959.0,1958.6,1.344]
[1773003189956,0.49896906,1959.0,1958.7,1.27635676]
[1773003190850,0.00153886,1959.0,1958.7,1.27635676]
[1773003200273,0.00153886,1959.0,1958.7,1.77460248]
[1773003204579,1e-08,1959.4,1958.8,0.49824572]
[1773003204779,1.41411922,1959.6,1958.8,0.49924572]
[1773003205075,1.41411922,1959.6,1958.9,0.49824572]
[1773003205276,0.14031569,1959.5,1959.0,1.355]
[1773003206084,0.14031569,1959.5,1959.0,1.85324572]
[1773003209620,0.14031569,1959.5,1959.1,1.77434188]
[1773003209789,1.41611922,1959.6,1959.1,1.77434188]
[1773003210083,0.14031569,1959.6,1959.1,1.77434188]
[1773003210285,1.41604418,1959.7,1959.2,0.49824572]
[1773003211555,1.41604418,1959.7,1959.3,1.2759659]
[1773003211556,0.14031569,1959.7,1959.3,1.2759659]
[1773003211860,0.14031569,1959.7,1959.3,1.77421162]
[1773003213189,0.002,1959.8,1959.4,0.46343147]
[1773003213391,0.002,1959.8,1959.5,1.82143147]
[1773003213892,0.002,1959.8,1959.5,2.63378111]
[1773003216598,0.002,1959.8,1959.5,3.09721258]
[1773003219074,0.002,1959.7,1959.5,3.09721258]
[1773003219300,0.002,1959.7,1959.6,0.46343147]
[1773003220778,0.002,1959.7,1959.6,1.73920203]
[1773003221194,1e-08,1959.9,1959.7,0.46343147]
[1773003221469,1e-08,1959.9,1959.6,1.73920203]
[1773003223700,1e-08,1959.9,1959.7,0.46343147]
[1773003224626,0.14031569,1959.8,1959.5,1.358]
[1773003224804,0.14031569,1959.8,1959.5,1.21968431]
[1773003225366,0.14031569,1959.8,1959.4,1.355]
[1773003227302,1.27570546,1959.7,1959.4,1.355]
[1773003228705,1.27570546,1959.7,1959.4,1.855]
[1773003228893,1.27559848,1959.9,1959.5,0.5]
[1773003229212,1.27557969,1959.9,1959.5,0.5]
[1773003230282,1e-08,1959.9,1959.5,0.5]
[1773003231315,1e-08,1959.9,1959.5,1.77583553]
[1773003232814,0.002,1959.7,1959.5,1.77583553]
[1773003233511,0.002,1959.8,1959.6,0.499]
[1773003235417,0.002,1959.8,1959.7,1.27570546]
[1773003235623,0.002,1959.8,1959.7,1.7711356]
[1773003235810,0.00353886,1960.0,1959.8,0.49543014]
[1773003236122,0.00353886,1960.0,1959.8,1.85443014]
[1773003238200,0.00353886,1960.0,1959.8,3.13005094]
[1773003241297,1.2878258,1960.6,1960.0,0.49366071]
[1773003241528,1.28782974,1960.6,1960.0,0.49366071]
[1773003241704,0.01267857,1960.5,1960.0,0.49366071]
[1773003242517,1.28791551,1960.5,1960.0,1.27546979]
[1773003242831,1.28791551,1960.5,1960.1,0.49366071]
[1773003243122,0.01267857,1960.4,1960.1,0.49366071]
[1773003244639,0.01267857,1960.3,1959.7,0.48270658]
[1773003244842,0.48200813,1960.2,1959.6,1.361]
[1773003245025,0.48200813,1960.2,1959.4,0.48270658]
[1773003245225,0.48200813,1960.2,1959.7,1.347]
[1773003246833,1.27544513,1960.1,1959.7,1.347]
[1773003247040,0.48931438,1960.0,1959.7,1.347]
[1773003247925,1.76474294,1960.2,1959.8,0.45631361]
[1773003248131,0.48931438,1960.1,1959.7,1.80331361]
[1773003249805,1.27547914,1960.1,1959.8,0.45631361]
[1773003252345,0.48931438,1960.1,1959.8,0.45631361]
[1773003254450,1.76478294,1960.1,1959.8,0.45631361]
[1773003260458,0.002,1960.3,1959.9,0.49148754]
[1773003260652,1.29434648,1960.3,1959.9,0.49148754]
[1773003260953,1.29434648,1960.3,1959.9,0.49248754]
[1773003262355,0.002,1960.3,1959.9,0.49248754]
[1773003262524,1.29436065,1960.3,1960.0,0.49148754]
[1773003262726,1.27733575,1960.3,1960.0,0.49148754]
[1773003263252,1.29436065,1960.3,1960.0,0.49148754]
[1773003269568,0.002,1960.3,1960.1,0.49148754]
[1773003271576,0.002,1960.3,1960.1,1.76693041]
[1773003271782,0.002,1960.3,1960.2,0.49148754]
[1773003274147,0.002,1960.3,1960.2,1.84648754]
[1773003274550,0.002,1960.4,1960.3,0.49048754]
[1773003275450,0.0210249,1960.4,1960.0,0.49048754]
[1773003275671,1.275315,1960.3,1960.0,0.49048754]
[1773003275987,1.2943399,1960.3,1960.0,0.49048754]
[1773003276848,0.0190249,1960.2,1959.9,0.49148754]
[1773003277882,1.275315,1960.3,1960.0,0.49048754]
[1773003278178,1.29632803,1960.4,1960.0,0.49048754]
[1773003280085,0.002,1960.4,1960.0,0.49048754]
[1773003280754,1.27725249,1960.4,1960.1,0.49048754]
[1773003281583,0.002,1960.4,1960.1,0.49048754]
[1773003284886,0.0210249,1960.4,1960.1,0.49048754]
[1773003287355,0.002,1960.3,1960.1,0.49048754]
[1773003290985,0.0368946,1960.3,1960.0,1.83155269]
[1773003292594,1.31227151,1960.3,1960.0,1.83155269]
[1773003300199,1.31227151,1960.3,1960.1,0.001]
[1773003300497,0.002,1960.2,1960.1,0.001]
[1773003301168,0.002,1960.2,1960.1,0.48355269]
[1773003301567,0.002,1960.2,1960.1,0.001]
[1773003301969,0.002,1960.2,1960.1,0.48255269]
[1773003305372,0.002,1960.2,1960.1,1.75799782]
[1773003308113,0.002,1960.4,1960.1,1.27644513]
[1773003308307,0.002,1960.6,1960.2,0.28227559]
[1773003308478,0.002,1960.6,1960.4,0.48227559]
[1773003311301,0.25027217,1960.5,1960.1,0.001]
[1773003314120,0.25027217,1960.3,1960.1,0.001]
[1773003314821,0.25027217,1960.3,1960.2,0.001]
[1773003316308,1.52558717,1960.3,1960.2,0.001]
[1773003317722,1.275315,1960.3,1960.2,0.001]
[1773003319420,0.45385416,1960.3,1960.2,0.001]
[1773003321325,1.72916916,1960.3,1960.2,0.001]
[1773003325436,1.275315,1960.3,1960.2,0.001]
[1773003327217,1.72915656,1960.4,1960.2,0.001]
[1773003327424,0.002,1960.3,1960.2,0.001]
[1773003327934,0.002,1960.3,1960.2,0.48327559]
[1773003329706,0.002,1960.5,1960.3,0.48227559]
[1773003333630,0.002,1960.5,1960.4,0.45732673]
[1773003339045,0.002,1960.5,1960.4,0.45832673]
[1773003340245,0.002,1960.5,1960.4,0.001]
[1773003340614,0.49676834,1960.5,1960.4,0.001]
[1773003344268,0.002,1960.5,1960.4,0.001]
[1773003344975,0.002,1960.5,1960.4,0.45832673]
[1773003348379,0.002,1960.5,1960.4,0.001]
[1773003348878,0.002,1960.5,1960.4,0.45832673]
[1773003349748,0.002,1960.5,1960.4,1.73357667]
[1773003351053,0.002,1960.9,1960.5,0.45732673]
[1773003352983,0.002,1960.9,1960.6,1.27511986]
[1773003353191,0.002,1960.9,1960.7,0.45732673]
[1773003357202,1.27692877,1960.9,1960.4,5.10187249]
[1773003357360,0.49476834,1960.8,1960.4,5.55919922]
[1773003357783,0.49476834,1960.8,1960.4,5.10187249]
[1773003357986,0.49476834,1960.8,1960.5,0.45732673]
[1773003358490,0.49476834,1960.8,1960.4,0.001]
[1773003358661,0.49476834,1960.8,1960.4,1.359]
[1773003358987,0.49476834,1960.8,1960.4,1.81632673]
[1773003359891,1.76981559,1960.8,1960.4,1.81632673]
[1773003361569,0.49476834,1960.7,1960.4,0.001]
[1773003362194,1.27511986,1960.6,1960.4,0.001]
[1773003362394,1.7698882,1960.6,1960.4,0.001]
[1773003363876,0.45851951,1960.5,1960.4,0.001]
[1773003364198,1.73370441,1960.5,1960.4,0.001]
[1773003364801,0.45851951,1960.5,1960.4,0.001]
[1773003367501,1.73370441,1960.5,1960.4,0.001]
[1773003371802,0.47925487,1960.4,1960.3,0.001]
[1773003375603,1.75450481,1960.4,1960.3,0.001]
[1773003388318,1.75650481,1960.4,1960.3,0.001]
[1773003391018,0.47925487,1960.3,1959.8,0.001]
[1773003391206,0.47925487,1960.3,1959.7,1e-08]
[1773003391995,1.27538006,1960.2,1959.7,1e-08]
[1773003392295,0.47925487,1960.1,1959.7,1e-08]
[1773003394611,1.73931212,1960.0,1959.7,1e-08]
[1773003394930,0.46380192,1959.9,1959.6,0.46949102]
[1773003395097,1.2755102,1960.0,1959.6,0.46949102]
[1773003395436,1.73931212,1960.0,1959.6,0.46949102]
[1773003397922,0.46380192,1960.0,1959.7,0.46849102]
[1773003398127,1.27543623,1960.2,1959.7,0.46849102]
[1773003399701,0.46380192,1960.3,1959.9,0.46849102]
[1773003400016,0.002,1960.0,1959.9,0.46849102]
[1773003405398,0.002,1960.0,1959.9,1.7440663]
[1773003412410,0.002,1960.0,1959.9,1.7450663]
[1773003413737,0.002,1960.0,1959.9,0.46949102]
[1773003414037,0.002,1960.0,1959.9,0.001]
[1773003424163,0.002,1960.0,1959.9,1.357]
[1773003427071,0.002,1960.2,1960.0,0.4801742]
[1773003428976,0.002,1960.2,1959.9,2.63257528]
[1773003429182,0.002,1960.2,1959.9,3.11274948]
[1773003436798,0.002,1960.1,1959.9,3.11274948]
[1773003443983,0.4780171,1960.1,1959.9,0.001]
[1773003444199,0.4780171,1960.1,1960.0,1.364]
[1773003445907,0.4780171,1960.1,1959.9,1.366]
[1773003448335,0.4780171,1960.1,1960.0,0.001]
[1773003458960,0.002,1960.1,1960.0,0.001]
[1773003460748,0.49248968,1960.1,1960.0,0.001]
[1773003461261,0.49248968,1960.1,1959.8,0.001]
[1773003461447,0.49248968,1960.1,1959.1,0.4507405]
[1773003461448,0.49048968,1959.7,1959.1,0.4507405]
[1773003461645,0.49048968,1959.7,1959.1,1.8197405]
[1773003462757,0.49048968,1959.5,1959.1,3.09577269]
[1773003463862,0.49048968,1959.5,1959.2,0.4507405]
[1773003464228,0.49048968,1959.5,1959.1,3.09577269]
[1773003471566,0.49048968,1959.5,1959.1,2.64503219]
[1773003471866,0.49048968,1959.1,1958.5,0.4507405]
[1773003472454,0.49048968,1959.1,1959.0,0.001]
[1773003472657,0.49048968,1959.1,1958.6,0.4507405]
[1773003472959,0.49048968,1959.1,1958.9,0.001]
[1773003473256,0.49048968,1959.1,1958.6,1.8217405]
[1773003473662,0.49048968,1958.9,1958.6,1.8217405]
[1773003473863,0.49048968,1958.9,1958.5,0.4507405]
[1773003474046,0.49048968,1958.9,1958.4,1.8217405]
[1773003474368,0.49048968,1958.7,1958.2,1.7274207]
[1773003474556,0.49048968,1958.7,1958.3,0.4507405]
[1773003475867,0.49048968,1959.2,1958.5,0.4507405]
[1773003476042,0.49048968,1959.1,1958.5,0.4507405]
[1773003477263,5.10404358,1959.3,1958.4,1.27655228]
[1773003477264,0.49048968,1959.3,1958.7,0.4507405]
[1773003477465,1.27790974,1959.4,1958.7,0.4507405]
[1773003477672,0.49248968,1959.4,1958.7,0.4507405]
[1773003477973,1.76840391,1959.4,1958.8,1.2762916]
[1773003478153,1.76840391,1959.4,1958.9,0.4507405]
[1773003478154,0.49048968,1959.3,1958.9,0.4507405]
[1773003478475,0.49048968,1959.3,1958.8,1.2762916]
[1773003478935,0.49048968,1959.3,1958.8,1.7270321]
[1773003480971,1.7664789,1959.3,1958.8,1.7270321]
[1773003481173,0.49048968,1959.2,1958.8,1.7270321]
[1773003481368,0.49048968,1959.2,1958.9,0.4507405]
[1773003482167,0.49048968,1959.2,1958.8,1.2762916]
[1773003482472,0.49048968,1959.2,1958.8,1.7270321]
[1773003484566,0.49048968,1959.2,1958.9,0.001]
[1773003484963,0.48391166,1959.1,1958.9,0.001]
[1773003485140,0.48391166,1959.1,1958.8,0.001]
[1773003486765,0.45357926,1958.9,1958.8,0.001]
[1773003488139,0.45357926,1958.9,1958.2,0.18666698]
[1773003488335,0.45357926,1959.2,1958.4,0.18666698]
[1773003491077,0.002,1959.4,1958.6,0.18666698]
[1773003491283,0.45357926,1959.3,1958.6,0.18666698]
[1773003496588,1.72961029,1959.2,1958.8,0.18666698]
[1773003496772,1.73161029,1959.2,1958.8,0.18666698]
[1773003499468,0.45357926,1959.1,1958.8,1.46295349]
[1773003502990,0.002,1959.2,1958.9,0.4517349]
[1773003505183,0.002,1959.2,1958.9,1.72793715]
[1773003507809,0.45557926,1959.2,1958.9,0.4517349]
[1773003509114,0.002,1959.1,1958.9,0.4517349]
[1773003509407,0.002,1959.1,1958.9,1.72795355]
[1773003520921,0.002,1959.1,1959.0,0.001]
[1773003521725,0.46935045,1959.1,1958.7,0.001]
[1773003523304,0.46735045,1959.0,1958.7,0.001]
[1773003526626,0.46935045,1959.1,1958.7,0.47280548]
[1773003530530,0.46735045,1959.0,1958.5,1.27646417]
[1773003530726,0.46735045,1959.0,1958.4,2.65049842]
[1773003531431,0.46735045,1959.0,1958.4,3.1223039]
[1773003531932,0.46735045,1959.0,1958.4,3.12235776]
[1773003533132,1.7435769,1958.9,1958.8,0.001]
[1773003533837,1.7435769,1958.9,1958.0,0.00153886]
[1773003533838,0.46735045,1958.8,1958.0,0.00153886]
[1773003534023,0.46735045,1958.5,1958.0,0.00153886]
[1773003535298,0.46735045,1958.3,1958.0,0.00153886]
[1773003535503,0.3749178,1958.3,1958.0,0.00153886]
[1773003535703,0.3698119,1958.3,1958.0,0.00153886]
[1773003536198,0.46735045,1958.5,1958.0,0.47334434]
[1773003537332,0.46735045,1958.4,1958.0,1.75011098]
[1773003537533,0.46735045,1958.4,1958.0,3.12311098]
[1773003537835,0.46735045,1958.4,1958.0,1.27833993]
[1773003538039,0.46735045,1958.5,1958.1,0.47180548]
[1773003538203,1.27641016,1958.7,1958.1,0.47180548]
[1773003538204,1.74376061,1958.7,1958.1,0.47180548]
[1773003538928,1.74370954,1958.7,1958.1,0.47180548]
[1773003539306,1.74370954,1958.7,1958.3,0.47180548]
[1773003540242,0.46735045,1958.6,1958.0,1.37453886]
[1773003540429,0.46735045,1958.6,1958.1,1.27672211]
[1773003540633,0.46735045,1958.6,1958.1,1.74852759]
[1773003541244,1.2764871,1958.5,1958.1,0.47180548]
[1773003541413,1.2764871,1958.5,1958.0,1.75015572]
[1773003541414,0.46735045,1958.4,1958.0,1.75015572]
[1773003541614,0.23714083,1958.4,1958.0,1.75015572]
[1773003542461,0.46735045,1958.9,1958.1,0.47180548]
[1773003542614,0.002,1959.0,1958.1,0.47180548]
[1773003542615,1.7455563,1959.0,1958.2,0.47180548]
[1773003543237,0.47716434,1958.9,1958.2,0.47180548]
[1773003543749,0.47716434,1958.9,1958.3,1.27661747]
[1773003543942,0.47716434,1958.9,1958.5,0.49595263]
[1773003544441,1.27820585,1959.0,1958.5,0.49595263]
[1773003544442,0.47916434,1959.0,1958.5,0.49595263]
[1773003544847,1.75532865,1959.0,1958.5,0.49595263]
[1773003545851,1.75532865,1959.0,1958.6,1.73786054]
[1773003546212,0.47590954,1958.9,1958.6,0.46143861]
[1773003550667,0.47590954,1958.9,1958.6,1.73785903]
[1773003551365,0.002,1959.0,1958.7,0.46143861]
[1773003553777,0.002,1959.0,1958.8,1.73773021]
[1773003554658,0.002,1959.0,1958.8,0.46143861]
[1773003555402,0.47590954,1958.9,1958.4,0.001]
[1773003555557,0.47590954,1958.9,1958.1,0.001]
[1773003555558,0.47590954,1958.8,1958.1,0.001]
[1773003555761,0.47590954,1958.4,1958.1,0.001]
[1773003557095,1.2764871,1958.5,1958.1,0.46243861]
[1773003557096,1.75239664,1958.5,1958.1,0.46243861]
[1773003558300,1.75239664,1958.5,1958.4,0.001]
[1773003559496,1.75239664,1958.5,1958.3,0.001]
[1773003559668,0.47590954,1958.4,1958.3,0.001]
[1773003560675,1.75246182,1958.4,1958.3,0.001]
[1773003562839,1.75237241,1958.6,1958.3,0.001]
[1773003562987,0.47590954,1958.6,1958.3,0.001]
[1773003565221,1.75239664,1958.5,1958.3,0.001]
[1773003566341,0.47590954,1958.4,1958.0,1.73973697]
[1773003566887,0.47590954,1958.4,1958.1,0.46143861]
[1773003568619,1.2765698,1958.4,1958.0,1.27829836]
[1773003568824,0.47590954,1958.3,1958.0,1.27829836]
[1773003568994,0.47590954,1958.3,1958.0,1.73973697]
[1773003571355,0.47590954,1958.3,1957.5,0.46143861]